bitfinex/quotes_ETHUSD_20250815
["timestamp","ask_amount","ask_price","bid_price","bid_amount"]
[1755291974595,0.60281585,4424.3,4422.4,5.86817545]
[1755291974816,0.1128,4422.7,4422.4,4.2487]
[1755291975016,0.1128,4422.7,4422.5,0.6417]
[1755291975203,0.1128,4422.7,4422.6,1.73826908]
[1755291975403,0.1128,4422.7,4422.6,2.37996908]
[1755291975604,0.11108422,4423.7,4422.8,2.26099629]
[1755291975803,0.1128,4423.0,4422.9,3.606]
[1755291976082,0.1128,4423.0,4422.9,0.6417]
[1755291976444,0.1128,4423.0,4422.9,1.24029691]
[1755291976718,0.1128,4423.0,4422.9,0.6417]
[1755291977321,3.0,4422.9,4422.4,0.6417]
[1755291977500,33.0,4422.9,4422.5,0.6417]
[1755291977702,33.0,4422.9,4421.5,3.605]
[1755291977703,30.0,4422.8,4422.6,0.6417]
[1755291977898,30.0,4422.8,4421.9,0.4853]
[1755291977899,3.0,4422.7,4421.9,0.4853]
[1755291978101,0.60281585,4423.3,4422.2,0.1564]
[1755291978315,0.1128,4422.4,4422.3,0.4853]
[1755291978513,0.1128,4422.4,4422.3,0.6417]
[1755291979023,0.03509704,4422.4,4422.3,0.6417]
[1755291979396,0.1128,4422.4,4422.3,0.1564]
[1755291979596,0.1128,4422.4,4422.0,49.90265061]
[1755291979823,0.002,4423.5,4422.0,49.90265061]
[1755291979824,0.1128,4422.1,4422.0,49.74625061]
[1755291980131,33.1128,4422.1,4422.0,49.74625061]
[1755291980421,33.71561585,4422.1,4422.0,49.74625061]
[1755291981032,33.1128,4422.1,4422.0,49.74625061]
[1755291981399,33.71561585,4422.1,4422.0,49.74625061]
[1755291981735,35.0367738,4422.1,4422.0,49.74625061]
[1755291982098,36.44642139,4422.1,4422.0,49.74625061]
[1755291982602,33.16744759,4422.1,4422.0,49.74625061]
[1755291983709,3.16744759,4422.1,4422.0,49.74625061]
[1755291984362,33.0,4422.1,4422.0,49.74625061]
[1755291984503,30.0,4422.1,4422.0,50.38795061]
[1755291984703,3.0,4422.5,4422.0,50.38795061]
[1755291984920,3.0,4422.3,4422.0,49.74625061]
[1755291985119,3.0,4422.1,4422.0,49.74625061]
[1755291985412,34.27075784,4422.1,4422.0,49.74625061]
[1755291985714,34.27075703,4422.1,4422.0,49.74625061]
[1755291986020,34.4804761,4422.1,4422.0,49.74625061]
[1755291986222,34.0282023,4422.1,4422.0,49.74625061]
[1755291986409,35.49990042,4422.1,4422.0,49.74625061]
[1755291987355,35.95217422,4422.1,4422.0,49.74625061]
[1755291987509,37.30717422,4422.1,4422.0,49.74625061]
[1755291988024,36.38547422,4422.1,4422.0,49.74625061]
[1755291988355,36.38585823,4422.1,4422.0,49.74625061]
[1755291988663,36.38378443,4422.1,4422.0,49.74625061]
[1755291988955,35.93358443,4422.1,4422.0,49.74625061]
[1755291989161,36.38378443,4422.1,4422.0,49.74625061]
[1755291989364,36.85528443,4422.1,4422.0,49.74625061]
[1755291989661,37.30755823,4422.1,4422.0,49.74625061]
[1755291989952,38.51498464,4422.1,4422.0,49.74625061]
[1755291990444,37.30755823,4422.1,4422.0,49.74625061]
[1755291990645,38.51498464,4422.1,4422.0,49.74625061]
[1755291990839,8.51498464,4422.1,4422.0,49.74625061]
[1755291991228,38.51498464,4422.1,4422.0,49.74625061]
[1755291991428,37.04340247,4422.1,4422.0,49.74625061]
[1755291991644,35.83597606,4422.1,4422.0,49.74625061]
[1755291991810,38.04360247,4422.1,4422.0,49.74625061]
[1755291992250,38.15640247,4422.1,4422.0,49.74625061]
[1755291992563,36.49877606,4422.1,4422.0,49.74625061]
[1755291992715,35.49650226,4422.1,4422.0,49.74625061]
[1755291992916,31.41093728,4422.1,4422.0,50.38835061]
[1755291993263,30.80562475,4422.1,4422.0,50.38835061]
[1755291993447,0.53602475,4422.1,4422.0,50.23155061]
[1755291993758,0.1128,4422.1,4422.0,52.43601465]
[1755291993958,0.1128,4422.1,4422.0,50.23155061]
[1755291994956,0.1128,4422.1,4422.0,52.49297078]
[1755291995129,0.1128,4422.1,4422.0,50.23155061]
[1755291995520,0.1128,4422.1,4422.0,52.55767078]
[1755291995521,0.02771354,4422.1,4422.0,52.55767078]
[1755291995750,0.02771354,4422.1,4422.0,58.30143482]
[1755291995963,0.002,4423.5,4422.1,2.26136257]
[1755291996187,0.1128,4422.5,4422.1,0.4853]
[1755291996394,33.0,4422.1,4422.0,49.74625061]
[1755291996876,33.21033373,4422.1,4422.0,49.74625061]
[1755291998466,3.21033373,4422.1,4422.0,49.74625061]
[1755291998675,33.21033373,4422.1,4422.0,49.74625061]
[1755291999935,33.0,4422.1,4422.0,49.74625061]
[1755292000571,34.56570296,4422.1,4422.0,49.74625061]
[1755292001279,34.7764172,4422.1,4422.0,49.74625061]
[1755292001432,35.50819315,4422.1,4422.0,49.74625061]
[1755292002173,35.38172973,4422.1,4422.0,49.74625061]
[1755292002351,35.2180172,4422.1,4422.0,49.74625061]
[1755292002546,35.94986495,4422.1,4422.0,49.74625061]
[1755292002783,37.65985242,4422.1,4422.0,49.74625061]
[1755292004764,31.15536234,4422.1,4422.0,49.74625061]
[1755292004934,30.0,4422.1,4422.0,49.74625061]
[1755292005142,6.30524984,4422.1,4422.0,49.74625061]
[1755292005368,37.11501329,4422.1,4422.0,49.74625061]
[1755292005579,37.34134159,4422.1,4422.0,49.74625061]
[1755292005777,34.03444159,4422.1,4422.0,49.74625061]
[1755292005935,34.51547215,4422.1,4422.0,49.74625061]
[1755292006135,33.90789275,4422.1,4422.0,49.74625061]
[1755292007779,34.51547215,4422.1,4422.0,49.74625061]
[1755292008356,34.64223852,4422.1,4422.0,49.74625061]
[1755292009150,34.03465912,4422.1,4422.0,49.74625061]
[1755292012754,35.38965912,4422.1,4422.0,49.74625061]
[1755292012956,5.38965912,4422.1,4422.0,49.74625061]
[1755292013155,34.90356737,4422.1,4422.0,49.74625061]
[1755292013356,35.38965912,4422.1,4422.0,49.74625061]
[1755292014255,35.39063346,4422.1,4422.0,49.74625061]
[1755292014721,38.14753346,4422.1,4422.0,49.74625061]
[1755292014992,38.26033346,4422.1,4422.0,49.74625061]
[1755292015501,38.71260726,4422.1,4422.0,48.52339041]
[1755292015862,8.71260726,4422.1,4422.0,48.52339041]
[1755292016062,11.08760726,4422.1,4422.0,48.52339041]
[1755292016560,41.08760726,4422.1,4422.0,48.52339041]
[1755292016755,38.26033346,4422.1,4422.0,48.52339041]
[1755292016958,35.50343346,4422.1,4422.0,48.52339041]
[1755292017301,36.72102537,4422.1,4422.0,48.52339041]
[1755292017467,35.50343346,4422.1,4422.0,48.52339041]
[1755292017667,35.37666709,4422.1,4422.0,48.52339041]
[1755292018062,32.37666709,4422.1,4422.0,48.52339041]
[1755292018292,35.37666709,4422.1,4422.0,48.52339041]
[1755292020108,35.50464661,4422.1,4422.0,48.52339041]
[1755292020397,35.94624661,4422.1,4422.0,48.52339041]
[1755292020601,35.50464661,4422.1,4422.0,48.52339041]
[1755292020789,35.37777391,4422.1,4422.0,48.52339041]
[1755292022563,30.0,4422.1,4422.0,53.67329041]
[1755292022791,0.1128,4422.1,4422.0,54.51145206]
[1755292023587,0.002,4422.4,4422.0,54.51145206]
[1755292023772,30.1128,4422.3,4422.1,5.1499]
[1755292023971,0.1128,4422.3,4422.1,5.1499]
[1755292024171,0.1128,4422.3,4422.1,5.75373514]
[1755292024386,0.1128,4422.3,4422.0,48.52339041]
[1755292024664,3.0,4422.2,4422.1,3.584]
[1755292026298,3.0,4422.2,4422.1,5.1499]
[1755292026662,3.0,4422.1,4422.0,48.52339041]
[1755292026980,33.0,4422.1,4422.0,48.52339041]
[1755292027182,33.48719878,4422.1,4422.0,48.52339041]
[1755292027389,34.15385803,4422.1,4422.0,48.52339041]
[1755292028281,33.69865803,4422.1,4422.0,48.52339041]
[1755292028701,36.85450627,4422.1,4422.0,48.52339041]
[1755292029266,34.36530627,4422.1,4422.0,48.52339041]
[1755292029612,33.91010627,4422.1,4422.0,48.52339041]
[1755292030311,34.36530627,4422.1,4422.0,48.52339041]
[1755292030514,34.97452038,4422.1,4422.0,48.52339041]
[1755292030671,34.36530627,4422.1,4422.0,48.52339041]
[1755292031612,34.36730627,4422.1,4422.0,48.52339041]
[1755292031812,0.70065803,4422.1,4422.0,52.09939041]
[1755292031969,0.002,4422.1,4422.0,53.61493356]
[1755292032302,0.002,4422.1,4422.0,53.66529041]
[1755292032507,0.002,4422.1,4422.0,52.09939041]
[1755292032887,0.1148,4422.1,4422.0,48.52339041]
[1755292033091,37.4142,4422.1,4422.0,48.52339041]
[1755292033428,38.32417002,4422.1,4422.0,48.52339041]
[1755292033707,39.13597155,4422.1,4422.0,48.52339041]
[1755292034367,38.9033305,4422.1,4422.0,48.52339041]
[1755292034572,38.4510567,4422.1,4422.0,48.52339041]
[1755292035414,39.13632278,4422.1,4422.0,48.52339041]
[1755292035813,38.45107056,4422.1,4422.0,48.52339041]
[1755292036515,38.45106928,4422.1,4422.0,48.52339041]
[1755292039226,38.4512387,4422.1,4422.0,48.52339041]
[1755292040625,35.9620387,4422.1,4422.0,48.52339041]
[1755292041824,38.02822394,4422.1,4422.0,48.52339041]
[1755292042028,42.48099593,4422.1,4422.0,48.04839041]
[1755292042228,41.97726151,4422.1,4422.0,44.84405159]
[1755292042448,35.39400402,4422.1,4422.0,44.623249]
[1755292042651,36.07904377,4422.1,4422.0,44.623249]
[1755292042813,38.6637734,4422.1,4422.0,44.623249]
[1755292042993,40.00856193,4422.1,4422.0,44.623249]
[1755292043201,36.85144567,4422.1,4422.0,19.13560854]
[1755292043395,39.82641143,4422.1,4422.0,12.96940023]
[1755292043595,41.53639587,4422.1,4422.0,12.96940023]
[1755292043795,39.53875433,4422.1,4422.0,12.96940023]
[1755292044048,40.21906333,4422.1,4422.0,12.96940023]
[1755292044354,42.21670487,4422.1,4422.0,12.96940023]
[1755292044509,39.90675467,4422.1,4422.0,12.96940023]
[1755292044691,39.90633524,4422.1,4422.0,12.96940023]
[1755292047833,39.90633524,4422.1,4422.0,12.62967786]
[1755292048033,40.19462295,4422.1,4422.0,12.62967786]
[1755292048335,39.74203021,4422.1,4422.0,12.62967786]
[1755292048894,41.73967175,4422.1,4422.0,12.62967786]
[1755292049295,9.74203021,4422.1,4422.0,12.33518772]
[1755292049502,39.74203021,4422.1,4422.0,9.88865417]
[1755292049823,39.74203021,4422.1,4422.0,9.5489318]
[1755292049998,41.85750462,4422.1,4422.0,9.20920943]
[1755292050398,39.85986308,4422.1,4422.0,8.86948706]
[1755292050837,39.85986308,4422.1,4422.0,8.52976469]
[1755292051233,39.85986308,4422.1,4422.0,8.19004232]
[1755292051638,39.85986308,4422.1,4422.0,7.85031995]
[1755292052002,39.97266308,4422.1,4422.0,7.51059758]
[1755292052201,39.97266308,4422.1,4422.0,5.67562871]
[1755292052402,39.97266308,4422.1,4422.0,5.11503044]
[1755292052838,39.68437537,4422.1,4422.0,5.11503044]
[1755292053341,39.80259902,4422.1,4422.0,5.11503044]
[1755292053514,39.80194136,4422.1,4422.0,5.11503044]
[1755292054236,40.96452275,4422.1,4422.0,5.11503044]
[1755292054438,38.79674136,4422.1,4422.0,5.11503044]
[1755292054638,38.11643236,4422.1,4422.0,5.11503044]
[1755292055030,40.73964721,4422.1,4422.0,5.11503044]
[1755292055217,39.12163236,4422.1,4422.0,5.11503044]
[1755292055415,45.11643236,4422.1,4422.0,5.11503044]
[1755292055817,45.66643236,4422.1,4422.0,5.11503044]
[1755292056940,45.66643236,4422.1,4422.0,7.85363044]
[1755292056941,39.50537584,4422.1,4422.0,7.85363044]
[1755292057310,43.05537584,4422.1,4422.0,7.85363044]
[1755292057653,40.3149035,4422.1,4422.0,7.85363044]
[1755292057866,39.50537584,4422.1,4422.0,7.85363044]
[1755292058043,39.98569424,4422.1,4422.0,7.85363044]
[1755292058353,42.50508172,4422.1,4422.0,7.85363044]
[1755292059545,43.05508172,4422.1,4422.0,7.39823044]
[1755292059712,39.19086943,4422.1,4422.0,3.89000433]
[1755292059913,39.19086943,4422.1,4422.0,3.74278797]
[1755292060542,39.19086943,4422.1,4422.0,1.29649549]
[1755292061448,39.19086943,4422.1,4422.0,1.00201798]
[1755292061707,38.43008172,4422.1,4422.0,1.00201798]
[1755292061934,38.2195004,4422.1,4422.0,1.00201798]
[1755292062109,38.43048845,4422.1,4422.0,1.00201798]
[1755292062310,4.28,4421.6,4421.5,0.001]
[1755292062512,38.42848845,4421.6,4421.5,0.001]
[1755292063032,39.64455414,4421.6,4421.5,2.7396]
[1755292063341,38.42848845,4421.6,4421.5,2.7396]
[1755292064535,8.42848845,4421.6,4421.5,2.7396]
[1755292065147,5.50348845,4421.6,4421.5,2.7396]
[1755292065444,36.31448983,4421.6,4421.5,2.7396]
[1755292065648,35.50348845,4421.6,4421.5,2.7396]
[1755292065853,36.31462731,4421.6,4421.5,2.7396]
[1755292066216,33.31462731,4421.6,4421.5,2.7396]
[1755292066417,32.98533072,4421.6,4421.5,2.7396]
[1755292066644,35.98533072,4421.6,4421.5,2.7396]
[1755292066825,35.37689562,4421.6,4421.5,2.7396]
[1755292067848,36.31481433,4421.6,4421.5,2.7396]
[1755292068049,36.31481433,4421.6,4421.5,0.001]
[1755292068050,36.05367547,4421.6,4421.5,0.001]
[1755292068248,37.27028634,4421.6,4421.5,0.001]
[1755292068548,36.05367547,4421.6,4421.5,0.001]
[1755292068921,38.42867547,4421.6,4421.5,0.001]
[1755292069625,3.73,4421.4,4421.1,0.021]
[1755292069836,9.01684776,4421.2,4421.1,0.021]
[1755292070049,40.0531753,4421.2,4421.1,0.021]
[1755292070251,38.42912754,4421.2,4421.1,0.021]
[1755292070458,39.18991525,4421.2,4421.1,0.021]
[1755292070657,39.19005809,4421.2,4421.1,0.021]
[1755292071660,9.19005809,4421.2,4421.1,0.021]
[1755292072146,39.19005809,4421.2,4421.1,0.021]
[1755292072355,0.55,4420.8,4419.8,2.2832]
[1755292072563,6.23605114,4420.2,4419.8,2.2832]
[1755292072765,37.27252152,4420.2,4419.8,2.2832]
[1755292073270,37.27252152,4420.2,4419.7,0.4554]
[1755292073271,37.27252152,4420.2,4420.1,2.3032]
[1755292074639,37.27252152,4420.2,4420.1,2.7586]
[1755292074968,35.50427038,4420.2,4420.1,2.7586]
[1755292075734,36.05427038,4420.2,4420.1,0.02]
[1755292075934,37.27252152,4420.2,4420.1,0.02]
[1755292076139,36.05427038,4420.2,4420.1,0.02]
[1755292076340,36.2278378,4420.2,4420.1,0.02]
[1755292076855,1.355,4420.0,4419.6,2.2832]
[1755292077059,1.355,4419.6,4418.1,0.02]
[1755292077375,0.1128,4419.3,4418.1,0.02]
[1755292077539,33.0,4419.2,4418.1,0.02]
[1755292077738,33.9095128,4419.2,4418.1,0.02]
[1755292078248,33.9095128,4419.2,4419.1,2.7586]
[1755292080660,33.69852475,4419.2,4419.1,2.7586]
[1755292080846,33.81132475,4419.2,4419.1,2.7586]
[1755292081275,30.81132475,4419.2,4419.1,2.7586]
[1755292081462,0.1128,4419.2,4419.1,3.26075613]
[1755292081773,0.1128,4419.2,4419.1,2.7586]
[1755292081774,30.1128,4419.2,4419.1,2.7586]
[1755292082778,35.16592939,4419.2,4419.1,2.7586]
[1755292083081,5.16592939,4419.2,4419.1,2.7586]
[1755292083276,4.67910172,4419.2,4419.1,2.7586]
[1755292083887,35.16592939,4419.2,4419.1,2.7586]
[1755292085281,0.60881231,4420.0,4419.1,3.03446]
[1755292085482,30.0,4419.9,4419.2,2.7386]
[1755292085684,0.60844008,4420.9,4419.4,2.26273599]
[1755292085888,3.0,4420.7,4419.5,0.4554]
[1755292086050,30.0,4420.6,4419.9,2.26246977]
[1755292086250,30.0,4420.6,4420.0,0.4554]
[1755292086571,30.0,4421.0,4420.0,0.4554]
[1755292086771,0.1128,4420.1,4420.0,0.4554]
[1755292087172,0.1128,4420.1,4420.0,2.71784343]
[1755292087377,1.355,4421.6,4420.0,0.9534363]
[1755292087693,30.0,4421.5,4420.1,0.471]
[1755292087861,0.1128,4420.6,4420.1,0.471]
[1755292088060,0.1128,4420.6,4420.4,2.26222629]
[1755292088361,0.1128,4420.6,4420.5,2.95941016]
[1755292088707,0.1128,4420.6,4420.5,0.69722263]
[1755292088873,0.1128,4420.6,4420.5,0.471]
[1755292089830,0.1702443,4421.7,4420.0,0.1128]
[1755292089959,3.0,4421.5,4420.5,0.471]
[1755292090161,3.0,4421.3,4420.5,0.471]
[1755292090359,3.0,4421.1,4420.5,0.471]
[1755292090584,30.0,4421.0,4420.5,0.471]
[1755292090766,30.0,4421.0,4420.6,0.471]
[1755292091078,30.0,4421.0,4419.1,0.02]
[1755292091079,3.0,4421.2,4420.7,0.471]
[1755292091262,3.0,4421.0,4420.7,0.471]
[1755292091462,30.0,4420.9,4420.7,0.471]
[1755292091882,30.0,4420.9,4419.1,0.02]
[1755292091883,3.0,4421.3,4419.1,0.02]
[1755292092189,3.0,4421.3,4419.6,0.471]
[1755292092190,3.0,4420.7,4419.6,0.471]
[1755292092356,3.0,4420.5,4419.6,0.471]
[1755292092567,30.0,4420.4,4419.6,0.471]
[1755292094200,30.0,4420.4,4419.7,2.26258959]
[1755292094400,30.0,4420.4,4420.0,2.26242101]
[1755292094762,30.0,4420.4,4420.1,0.471]
[1755292095163,30.0,4420.4,4420.2,0.471]
[1755292095399,30.0,4420.4,4420.3,0.471]
[1755292096199,0.81125345,4421.6,4420.3,0.471]
[1755292096200,0.60844008,4421.7,4420.3,0.471]
[1755292096373,30.0,4421.6,4420.3,0.471]
[1755292096573,3.0,4421.6,4420.3,0.471]
[1755292096780,3.0,4421.4,4420.3,0.471]
[1755292096986,30.0,4421.3,4420.3,0.471]
[1755292098200,0.002,4420.4,4420.3,0.471]
[1755292098373,0.002,4420.4,4420.3,2.73328048]
[1755292098573,0.002,4420.4,4420.3,3.2328451]
[1755292099394,0.002,4420.4,4420.3,3.7828451]
[1755292099898,0.002,4420.4,4420.3,3.8956451]
[1755292101466,0.002,4420.4,4420.3,3.2328451]
[1755292101767,0.1148,4420.4,4419.7,0.1128]
[1755292102182,0.1148,4420.4,4419.7,2.37538581]
[1755292102476,0.1128,4420.1,4419.7,2.26258581]
[1755292102803,0.1128,4420.1,4419.9,2.2624441]
[1755292103384,0.1128,4420.1,4419.9,2.7334441]
[1755292103584,0.1128,4420.1,4420.0,0.471]
[1755292103806,0.1128,4420.1,4419.7,0.51091186]
[1755292104020,0.1128,4420.1,4419.8,2.26249995]
[1755292104224,0.1128,4420.1,4419.8,0.471]
[1755292104510,0.1128,4420.1,4419.7,2.26257012]
[1755292104690,0.1128,4420.1,4419.8,2.26254327]
[1755292105014,0.1128,4420.1,4419.7,0.471]
[1755292105320,0.1128,4420.1,4419.8,2.73354206]
[1755292105512,0.1128,4420.1,4419.2,0.471]
[1755292105711,0.1128,4419.6,4419.2,2.73384703]
[1755292105915,0.1128,4419.6,4419.1,0.021]
[1755292106072,2.3811,4419.6,4419.1,0.021]
[1755292106408,0.1128,4419.6,4419.1,0.021]
[1755292106570,2.3811,4419.6,4419.1,0.021]
[1755292106767,2.2683,4419.5,4419.1,0.021]
[1755292107086,0.1128,4419.3,4419.2,0.471]
[1755292107306,0.1128,4419.6,4419.3,2.26275399]
[1755292107502,0.1128,4419.6,4419.4,0.471]
[1755292107799,0.1128,4419.6,4419.5,2.2626994]
[1755292108000,0.1128,4419.6,4419.5,2.7336994]
[1755292109779,0.1128,4419.6,4419.4,2.26274847]
[1755292110102,0.1128,4419.6,4419.1,6.08024978]
[1755292110103,0.1128,4419.6,4419.1,2.51224978]
[1755292110284,0.1128,4419.6,4419.4,2.26274733]
[1755292110612,0.1128,4419.6,4419.2,0.66640498]
[1755292110812,0.1128,4419.6,4419.3,2.26279369]
[1755292111186,0.1128,4419.6,4419.2,0.66640498]
[1755292111601,0.1128,4419.6,4419.2,2.92924312]
[1755292112493,0.1128,4419.6,4419.2,0.66640498]
[1755292112698,0.1128,4419.3,4419.1,0.021]
[1755292113107,2.3811,4419.3,4419.1,0.021]
[1755292113700,2.2683,4419.2,4419.1,0.021]
[1755292114314,32.7105,4419.2,4419.1,0.021]
[1755292115323,36.19785734,4419.2,4419.1,0.021]
[1755292117809,37.55685734,4419.2,4419.1,0.021]
[1755292118126,36.19785734,4419.2,4419.1,0.021]
[1755292119289,37.55685734,4419.2,4419.1,0.021]
[1755292119924,30.1128,4419.2,4419.1,0.021]
[1755292120097,0.1128,4419.2,4419.1,0.24950419]
[1755292120298,2.4526,4419.2,4419.1,0.021]
[1755292120532,2.8871,4419.2,4419.1,0.021]
[1755292121290,7.2461,4419.2,4419.1,0.021]
[1755292121496,37.7329077,4419.2,4419.1,0.021]
[1755292125337,37.2984077,4419.2,4419.1,0.021]
[1755292125931,7.2984077,4419.2,4419.1,0.021]
[1755292126136,7.7329077,4419.2,4419.1,0.021]
[1755292126841,37.7329077,4419.2,4419.1,0.021]
[1755292127036,33.1128,4419.2,4419.1,0.021]
[1755292127401,33.1128,4419.2,4419.1,0.4852]
[1755292128233,33.1128,4419.2,4419.1,0.021]
[1755292128900,1.21888017,4420.7,4419.1,0.021]
[1755292128901,0.002,4420.4,4419.1,0.4852]
[1755292129104,4.359,4420.2,4419.2,0.27492049]
[1755292129322,4.359,4420.2,4419.1,0.021]
[1755292129323,4.359,4420.0,4419.1,0.021]
[1755292129537,4.359,4419.8,4419.1,0.021]
[1755292129847,4.359,4419.6,4419.1,0.021]
[1755292130048,4.359,4419.4,4419.1,0.021]
[1755292130200,4.359,4419.2,4419.1,0.021]
[1755292130408,34.84528266,4419.2,4419.1,0.021]
[1755292130606,37.61958266,4419.2,4419.1,0.021]
[1755292130923,37.18508266,4419.2,4419.1,0.021]
[1755292131115,33.0,4419.2,4419.1,0.021]
[1755292131446,38.042891,4419.2,4419.1,0.021]
[1755292131602,35.82672902,4419.2,4419.1,0.021]
[1755292131805,36.03805263,4419.2,4419.1,0.021]
[1755292132002,37.6083813,4419.2,4419.1,0.021]
[1755292132443,8.0428813,4419.2,4419.1,0.021]
[1755292132618,38.65118096,4419.2,4419.1,0.021]
[1755292133715,38.21668096,4419.2,4419.1,0.021]
[1755292134413,35.65118096,4419.2,4419.1,0.021]
[1755292134723,38.65118096,4419.2,4419.1,0.021]
[1755292135605,8.65118096,4419.2,4419.1,0.021]
[1755292136133,38.65118096,4419.2,4419.1,0.021]
[1755292136343,38.21668096,4419.2,4419.1,0.021]
[1755292137508,37.6083813,4419.2,4419.1,0.021]
[1755292137836,33.69825769,4419.2,4419.1,0.021]
[1755292138042,3.0,4419.2,4419.1,0.4852]
[1755292138412,3.21155158,4419.2,4419.1,0.4852]
[1755292138929,3.21155158,4419.2,4419.1,0.021]
[1755292139640,3.32435158,4419.2,4419.1,0.021]
[1755292139838,35.66415158,4419.2,4419.1,0.021]
[1755292140052,36.97263445,4419.2,4419.1,0.021]
[1755292140218,34.63283445,4419.2,4419.1,0.021]
[1755292140419,33.81162219,4419.2,4419.1,0.021]
[1755292141949,33.81162219,4419.2,4419.1,0.4852]
[1755292142555,0.81162219,4419.2,4419.1,0.4852]
[1755292142755,0.002,4419.8,4419.1,0.4887]
[1755292142965,0.1128,4419.4,4419.1,0.4887]
[1755292143140,0.1128,4419.4,4419.2,0.27526809]
[1755292143335,0.1128,4419.4,4419.2,0.4642]
[1755292143540,0.1128,4419.4,4419.1,0.021]
[1755292144060,3.0,4419.2,4419.1,0.021]
[1755292144258,0.91174599,4419.2,4419.1,0.021]
[1755292144558,5.7635068,4419.2,4419.1,0.021]
[1755292144753,3.91174599,4419.2,4419.1,0.021]
[1755292144935,5.7635068,4419.2,4419.1,0.021]
[1755292145333,36.80756055,4419.2,4419.1,0.021]
[1755292145539,36.68604599,4419.2,4419.1,0.021]
[1755292145928,36.68609515,4419.2,4419.1,0.021]
[1755292146128,36.25159515,4419.2,4419.1,0.021]
[1755292146457,36.25449515,4419.2,4419.1,0.021]
[1755292146760,36.8645569,4419.2,4419.1,0.021]
[1755292146956,36.69089515,4419.2,4419.1,0.021]
[1755292147336,6.69089515,4419.2,4419.1,0.021]
[1755292147657,8.04989515,4419.2,4419.1,0.021]
[1755292147862,38.04989515,4419.2,4419.1,0.021]
[1755292149538,8.04989515,4419.2,4419.1,0.021]
[1755292149743,38.04989515,4419.2,4419.1,0.021]
[1755292149956,37.61349515,4419.2,4419.1,0.021]
[1755292151244,38.04989515,4419.2,4419.1,0.021]
[1755292152767,38.8611486,4419.2,4419.1,0.021]
[1755292152967,38.04989515,4419.2,4419.1,0.021]
[1755292153273,38.17706659,4419.2,4419.1,0.021]
[1755292153653,34.359,4419.1,4419.0,0.001]
[1755292153858,38.28986659,4419.1,4419.0,0.001]
[1755292156291,39.07349801,4419.1,4419.0,0.001]
[1755292157270,39.07350427,4419.1,4419.0,0.001]
[1755292157491,35.38360141,4419.1,4419.0,0.001]
[1755292158385,31.02460141,4419.1,4419.0,0.4654]
[1755292158597,0.60083919,4419.1,4419.0,0.4654]
[1755292158760,0.1128,4419.1,4419.0,0.4654]
[1755292159309,0.60083919,4419.1,4419.0,0.4654]
[1755292159486,0.1128,4419.1,4419.0,0.4654]
[1755292159804,0.60083919,4419.1,4419.0,0.4654]
[1755292159956,0.1128,4419.1,4419.0,0.4654]
[1755292160583,0.1128,4419.1,4419.0,0.4689]
[1755292160789,0.1128,4419.1,4419.0,0.4654]
[1755292161592,0.1128,4419.1,4419.0,0.001]
[1755292162090,3.1128,4419.1,4419.0,0.001]
[1755292162276,33.81264379,4419.1,4419.0,0.001]
[1755292162661,36.76522445,4419.1,4419.0,0.001]
[1755292162861,33.81264379,4419.1,4419.0,0.001]
[1755292163066,33.81264379,4419.1,4419.0,0.4654]
[1755292163257,33.81264379,4419.1,4419.0,0.001]
[1755292163457,34.42252445,4419.1,4419.0,0.001]
[1755292164196,36.76522445,4419.1,4419.0,0.001]
[1755292164596,37.20162445,4419.1,4419.0,0.001]
[1755292165018,36.80358074,4419.1,4419.0,0.001]
[1755292165407,38.97572925,4419.1,4419.0,0.001]
[1755292165780,38.97577592,4419.1,4419.0,0.001]
[1755292166103,38.16262741,4419.1,4419.0,0.001]
[1755292166302,33.91172741,4419.1,4419.0,0.001]
[1755292166513,34.83799167,4419.1,4419.0,0.001]
[1755292166884,34.02652741,4419.1,4419.0,0.4654]
[1755292167402,34.02652741,4419.1,4419.0,0.001]
[1755292168109,34.02652741,4419.1,4419.0,0.4654]
[1755292168320,3.81469046,4419.1,4419.0,0.4654]
[1755292168610,4.42478671,4419.1,4419.0,0.4654]
[1755292168823,4.4247825,4419.1,4419.0,0.4654]
[1755292168991,4.4247825,4419.1,4419.0,0.001]
[1755292170410,6.7674825,4419.1,4419.0,0.001]
[1755292171487,6.76748958,4419.1,4419.0,0.001]
[1755292171687,37.72824749,4419.1,4419.0,0.001]
[1755292171888,38.16464749,4419.1,4419.0,0.001]
[1755292173022,37.72824749,4419.1,4419.0,0.001]
[1755292173202,38.94827891,4419.1,4419.0,0.001]
[1755292173726,39.38467891,4419.1,4419.0,0.001]
[1755292174224,38.29182422,4419.1,4419.0,0.001]
[1755292174391,4.359,4419.0,4418.6,0.001]
[1755292174597,4.3338786,4418.7,4418.6,0.001]
[1755292174814,35.24572737,4418.7,4418.6,0.001]
[1755292175018,34.02464877,4418.7,4418.6,0.001]
[1755292175416,34.02469597,4418.7,4418.6,0.001]
[1755292175628,34.8386068,4418.7,4418.6,0.001]
[1755292176008,35.14753626,4418.7,4418.6,0.001]
[1755292176201,35.14753626,4418.7,4418.6,0.4654]
[1755292176399,34.33362543,4418.7,4418.6,0.4654]
[1755292176599,34.12172407,4418.7,4418.6,0.4654]
[1755292177323,4.12172407,4418.7,4418.6,0.4654]
[1755292177541,3.32475542,4418.7,4418.6,0.4654]
[1755292177840,3.60083919,4418.7,4418.6,0.4654]
[1755292178417,3.81272993,4418.7,4418.6,0.4654]
[1755292180921,3.81272993,4418.7,4418.6,0.001]
[1755292181123,36.12942993,4418.7,4418.6,0.001]
[1755292181727,36.73977761,4418.7,4418.6,0.001]
[1755292181932,36.12942993,4418.7,4418.6,0.001]
[1755292182639,37.58444743,4418.7,4418.6,0.001]
[1755292182837,37.37254076,4418.7,4418.6,0.001]
[1755292183055,7.37254076,4418.7,4418.6,0.001]
[1755292183257,37.58445096,4418.7,4418.6,0.001]
[1755292183567,33.81272993,4418.7,4418.6,0.001]